fUST/lending_fUST_20250809
["ID","MTS","AMOUNT","RATE_DAILY","PERIOD"]
[378054592,1754704254573,-460.0,0.00024115,2]
[378054593,1754704254582,-460.0,0.00024115,2]
[378054594,1754704254591,-460.0,0.00024115,2]
[378054595,1754704254601,-472.34478223,0.00024115,2]
[378054596,1754704254692,-460.0,0.00024115,2]
[378054597,1754704254703,-168.0,0.00024133,2]
[378054598,1754704254713,-150.0,0.00024167,2]
[378054599,1754704254722,-460.0,0.00024184,2]
[378054600,1754704254731,-460.0,0.00024184,2]
[378054601,1754704254741,-460.0,0.00024184,2]
[378054602,1754704254751,-460.0,0.00024184,2]
[378054603,1754704254760,-1200.0,0.00024188,2]
[378054604,1754704254769,-151.0,0.000242,8]
[378054605,1754704254778,-663.0,0.00024215,2]
[378054606,1754704254786,-450.0,0.00024216,2]
[378054607,1754704254795,-1022.69273619,0.00024268,2]
[378054608,1754704254804,-250.46006549,0.00024268,2]
[378054609,1754704254813,-203.71,0.000243,2]
[378054610,1754704254822,-360.0,0.00024339,2]
[378054611,1754704254832,-361.54585342,0.0002435,2]
[378054612,1754704254842,-460.0,0.00024356,2]
[378054613,1754704254855,-1638.53,0.00024356,2]
[378054614,1754704254864,-460.0,0.00024356,2]
[378054615,1754704254873,-460.0,0.00024356,2]
[378054616,1754704254883,-842.72,0.00024356,2]
[378054617,1754704254893,-1204.44,0.00024356,2]
[378054618,1754704254903,-460.0,0.00024356,2]
[378054619,1754704254912,-1498.59,0.00024356,2]
[378054620,1754704254921,-460.0,0.00024356,2]
[378054621,1754704254932,-460.0,0.00024388,2]
[378054622,1754704254943,-460.0,0.00024388,2]
[378054623,1754704254952,-460.0,0.00024388,2]
[378054624,1754704254961,-460.0,0.00024388,2]
[378054625,1754704254970,-460.0,0.00024388,2]
[378054626,1754704254979,-460.0,0.00024388,2]
[378054627,1754704254989,-460.0,0.00024388,2]
[378054628,1754704254998,-460.0,0.00024388,2]
[378054629,1754704255008,-460.0,0.00024388,2]
[378054630,1754704255018,-460.0,0.00024388,2]
[378054631,1754704255029,-460.0,0.00024388,2]
[378054632,1754704255039,-509.94123995,0.00024388,2]
[378054633,1754704255049,-2932.03,0.00024388,2]
[378054634,1754704255059,-460.0,0.00024388,2]
[378054635,1754704255069,-680.04,0.00024388,2]
[378054636,1754704255079,-460.0,0.00024389,2]
[378054637,1754704255090,-460.0,0.00024389,2]
[378054638,1754704255100,-197.71345677,0.00024389,2]
[378054639,1754704255110,-460.0,0.00024389,2]
[378054640,1754704255119,-460.0,0.00024389,2]
[378054641,1754704255129,-460.0,0.00024389,2]
[378054642,1754704255138,-575.31761962,0.00024389,2]
[378054643,1754704255147,-460.0,0.00024389,2]
[378054644,1754704255156,-549.85,0.00024389,2]
[378054645,1754704255165,-781.79,0.00024389,2]
[378054646,1754704255175,-590.59,0.00024389,2]
[378054647,1754704255184,-745.87,0.00024389,2]
[378054648,1754704255194,-460.0,0.00024389,2]
[378054649,1754704255204,-999.87,0.00024389,2]
[378054650,1754704255214,-460.0,0.00024389,2]
[378054651,1754704255224,-596.07,0.00024389,2]
[378054652,1754704255233,-605.28,0.00024389,2]
[378054653,1754704255242,-460.0,0.00024389,2]
[378054654,1754704255251,-460.0,0.00024389,2]
[378054655,1754704255261,-460.0,0.00024389,2]
[378054656,1754704255271,-460.0,0.00024389,2]
[378054657,1754704255280,-663.0,0.00024405,2]
[378054658,1754704255290,-2000.0,0.00024416,2]
[378054659,1754704255299,-2000.0,0.00024416,2]
[378054660,1754704255310,-656.38657788,0.00024416,2]
[378054661,1754704255320,-2000.0,0.00024416,2]
[378054662,1754704255331,-2000.0,0.00024416,2]
[378054663,1754704255340,-1913.00310154,0.00024416,2]
[378054664,1754704255352,-160.0,0.00024432,2]
[378054665,1754704255362,-160.0,0.00024432,2]
[378054666,1754704255372,-12663.41139009,0.00024434,2]
[378054667,1754704255381,-160.0,0.00024434,2]
[378054668,1754704255391,-160.0,0.00024434,2]
[378054669,1754704255402,-160.0,0.00024434,2]
[378054670,1754704255413,-160.0,0.00024434,2]
[378054671,1754704255423,-160.0,0.00024436,2]
[378054672,1754704255432,-842.78739015,0.00024436,2]
[378054673,1754704255443,-461.45099301,0.00024436,2]
[378054674,1754704255452,-312.16666667,0.00024436,2]
[378054675,1754704255461,-160.0,0.00024441,2]
[378054676,1754704255471,-231.87430077,0.00024441,2]
[378054677,1754704255481,-160.0,0.00024441,2]
[378054678,1754704255490,-216.5651299,0.00024441,2]
[378054679,1754704255499,-460.0,0.00024458,2]
[378054680,1754704255508,-460.0,0.00024458,2]
[378054681,1754704255517,-460.0,0.00024458,2]
[378054682,1754704255527,-460.0,0.00024458,2]
[378054683,1754704255536,-400.0,0.00024464,2]
[378054684,1754704255546,-1544.22035058,0.00024464,2]
[378054685,1754704255555,-168.0,0.00024467,2]
[378054686,1754704255565,-151.0,0.00024496,2]
[378054687,1754704255575,-282.27153157,0.00024496,2]
[378054688,1754704255584,-160.04996332,0.000245,4]
[378054689,1754704255594,-674.85,0.00024543,2]
[378054690,1754704255603,-160.0,0.00024546,2]
[378054691,1754704255613,-663.0,0.00024565,2]
[378054692,1754704255622,-151.0,0.000246,9]
[378054693,1754704255632,-460.0,0.0002463,2]
[378054694,1754704255641,-1638.53,0.0002463,2]
[378054695,1754704255651,-460.0,0.0002463,2]
[378054696,1754704255660,-460.0,0.0002463,2]
[378054697,1754704255669,-842.72,0.0002463,2]
[378054698,1754704255679,-1204.44,0.0002463,2]
[378054699,1754704255688,-600.76769761,0.0002463,2]
[378054700,1754704255698,-1498.59,0.0002463,2]
[378054701,1754704255707,-460.0,0.0002463,2]
[378054702,1754704255716,-179.0310921,0.0002463,13]
[378054703,1754704255726,-20549.16023251,0.0002465,2]
[378054704,1754704255736,-3687.5,0.00024657,2]
[378054705,1754704255745,-150.0,0.00024658,2]
[378054706,1754704255755,-500.0,0.00024658,2]
[378054707,1754704255764,-151.0,0.00024658,7]
[378054708,1754704255773,-151.0,0.00024658,7]
[378054709,1754704255782,-151.0,0.00024658,7]
[378054710,1754704255791,-151.0,0.00024658,7]
[378054711,1754704255800,-151.0,0.00024658,7]
[378054712,1754704255809,-151.0,0.00024658,7]
[378054713,1754704255819,-151.0,0.00024658,7]
[378054714,1754704255828,-151.0,0.00024658,7]
[378054715,1754704255838,-151.0,0.00024658,7]
[378054716,1754704255849,-152.207969,0.00024658,7]
[378054717,1754704255859,-280.0,0.00024658,2]
[378054718,1754704255870,-151.0,0.00024658,2]
[378054719,1754704255879,-443.0,0.00024658,2]
[378054720,1754704255889,-460.0,0.00024662,2]
[378054721,1754704255898,-460.0,0.00024662,2]
[378054722,1754704255907,-460.0,0.00024662,2]
[378054723,1754704255916,-460.0,0.00024662,2]
[378054724,1754704255926,-460.0,0.00024662,2]
[378054725,1754704255936,-460.0,0.00024662,2]
[378054726,1754704255948,-197.79025975,0.00024662,2]
[378054727,1754704255957,-315.5993796,0.00024662,2]
[378054728,1754704255966,-460.0,0.00024662,2]
[378054729,1754704255975,-460.0,0.00024662,2]
[378054730,1754704255985,-460.0,0.00024662,2]
[378054731,1754704255994,-2932.03,0.00024662,2]
[378054732,1754704256003,-460.0,0.00024662,2]
[378054733,1754704256013,-680.04,0.00024662,2]
[378054734,1754704256022,-262.46392976,0.00024663,2]
[378054735,1754704256031,-305.96684601,0.00024663,2]
[378054736,1754704256041,-460.0,0.00024663,2]
[378054737,1754704256051,-254.84,0.00024663,2]
[378054738,1754704256062,-179.3939414,0.00024663,2]
[378054739,1754704256072,-460.0,0.00024663,2]
[378054740,1754704256082,-549.85,0.00024663,2]
[378054741,1754704256091,-781.79,0.00024663,2]
[378054742,1754704256101,-590.59,0.00024663,2]
[378054743,1754704256111,-745.87,0.00024663,2]
[378054744,1754704256121,-460.0,0.00024663,2]
[378054745,1754704256131,-999.87,0.00024663,2]
[378054746,1754704256140,-460.0,0.00024663,2]
[378054747,1754704256150,-596.07,0.00024663,2]
[378054748,1754704256159,-605.28,0.00024663,2]
[378054749,1754704256168,-460.0,0.00024663,2]
[378054750,1754704256178,-460.0,0.00024663,2]
[378054751,1754704256187,-526.62579539,0.00024663,2]
[378054752,1754704256198,-460.0,0.00024663,2]
[378054753,1754704256208,-553.73903812,0.0002469,10]
[378054754,1754704256288,-151.0,0.000247,7]
[378054755,1754704256298,-250.0,0.00024715,2]
[378054756,1754704256307,-1759.0,0.00024728,3]
[378054757,1754704256317,-1807.27114986,0.00024728,3]
[378054758,1754704256327,-1759.0,0.00024728,3]
[378054759,1754704256337,-1759.0,0.00024728,3]
[378054760,1754704256346,-1759.0,0.00024728,3]
[378054761,1754704256356,-325.0,0.00024728,3]
[378054762,1754704256365,-325.0,0.00024728,3]
[378054763,1754704256375,-325.0,0.00024728,3]
[378054764,1754704256384,-325.0,0.00024728,3]
[378054765,1754704256394,-325.0,0.00024728,3]
[378054766,1754704256403,-325.0,0.00024728,3]
[378054767,1754704256412,-325.0,0.00024728,3]
[378054768,1754704256422,-460.0,0.00024732,2]
[378054769,1754704256432,-233.1106248,0.00024732,2]
[378054770,1754704256445,-460.0,0.00024732,2]
[378054771,1754704256454,-460.0,0.00024732,2]
[378054772,1754704256463,-550.0,0.00024764,2]
[378054773,1754704256473,-12288.94869682,0.00024774,2]
[378054774,1754704256483,-86015.7673784,0.000248,2]
[378054775,1754704256492,-346.36585106,0.00024802,2]
[378054776,1754704256502,-168.0,0.00024817,2]
[378054777,1754704256512,-9662.5587038,0.0002487,7]
[378054778,1754704256934,162.366871,0.00013699,2]
[378054779,1754704256974,-109.22398075,0.00021918,2]
[378054780,1754704257232,409.57,0.0001858,2]
[378054781,1754704273166,2889.99506162,0.000199,2]
[378054782,1754704280136,150.67759417,0.00027032,30]
[378054783,1754704303333,150.67759417,0.00027032,30]
[378054784,1754704331143,150.67759418,0.00027031,30]
[378054785,1754704336638,480.0,0.0002145,7]
[378054786,1754704354651,150.67759418,0.00027004,30]
[378054787,1754704463335,2797.68312987,0.000199,2]
[378054788,1754704658879,2851.15897418,0.000199,2]
[378054789,1754704663887,5000.0,0.0002145,2]
[378054790,1754704854658,2758.37362373,0.000199,2]
[378054791,1754704927250,215.20074585,0.0002132,5]
[378054792,1754704979406,15451.88444511,0.00028,30]
[378054793,1754705053833,2266.42783634,0.000199,2]
[378054794,1754705066202,191.1004549,0.00021012,2]
[378054795,1754705105719,6186.87889649,0.00021017,2]
[378054796,1754705105741,18713.12110351,0.00021017,2]
[378054797,1754705123542,5000.0,0.0002145,2]
[378054798,1754705139065,5000.0,0.0002145,2]
[378054799,1754705172165,1545.7,0.00030137,120]
[378054800,1754705242105,-179.65122183,0.00021818,2]
[378054801,1754705242126,-53.14289025,0.00021918,2]
[378054802,1754705242147,-1200.0,0.00021953,2]
[378054803,1754705242168,-5648.42237812,0.00021954,2]
[378054804,1754705242189,-303.07011973,0.00021963,2]
[378054805,1754705242209,-300.0,0.00021971,2]
[378054806,1754705242229,-300.0,0.00021971,2]
[378054807,1754705242250,-300.0,0.00021972,2]
[378054808,1754705242270,-6519.42447776,0.00021973,2]
[378054809,1754705242290,-3618.63214222,0.00021973,2]
[378054810,1754705242309,-6519.42447772,0.00021996,2]
[378054811,1754705242331,-599.87,0.00022,2]
[378054812,1754705242351,-6519.42447772,0.00022019,2]
[378054813,1754705242372,-4255.71711165,0.00022041,2]
[378054814,1754705253715,162.366871,0.00013699,2]
[378054815,1754705254360,1790.43136396,0.000199,2]
[378054817,1754705414715,206.90859,0.00021005,2]
[378054818,1754705415176,545.33319508,0.00021335,2]
[378054819,1754705415519,272.66659754,0.0002138,2]
[378054858,1754705432401,-300.0,0.00021994,2]
[378054860,1754705432411,-460.0,0.00021995,2]
[378054862,1754705432421,-460.0,0.00021995,2]
[378054864,1754705432431,-460.0,0.00021995,2]
[378054866,1754705432441,-1412.08,0.00021995,2]
[378054868,1754705432451,-462.82950462,0.00021995,2]
[378054870,1754705432461,-460.0,0.00021995,2]
[378054872,1754705432475,-1003.7,0.00021995,2]
[378054874,1754705432485,-460.0,0.00021995,2]
[378054876,1754705432494,-702.27,0.00021995,2]
[378054879,1754705432505,-460.0,0.00021995,2]
[378054881,1754705432514,-1248.82,0.00021995,2]
[378054883,1754705432524,-460.0,0.00021995,2]
[378054885,1754705432534,-462.30587664,0.00021995,2]
[378054886,1754705432544,-460.0,0.00021995,2]
[378054889,1754705432554,-456.98380819,0.00022061,2]
[378054891,1754705432563,-460.0,0.00022062,2]
[378054893,1754705432573,-460.0,0.00022062,2]
[378054895,1754705432583,-460.0,0.00022062,2]
[378054897,1754705432593,-381.21233647,0.00022062,2]
[378054899,1754705432602,-460.0,0.00022062,2]
[378054900,1754705432610,-464.19827954,0.00022062,2]
[378054902,1754705432620,-460.0,0.00022062,2]
[378054905,1754705432630,-460.0,0.00022062,2]
[378054906,1754705432640,-460.0,0.00022062,2]
[378054909,1754705432650,-460.0,0.00022062,2]
[378054911,1754705432659,-317.47886199,0.00022062,2]
[378054913,1754705432668,-460.0,0.00022062,2]
[378054915,1754705432677,-460.0,0.00022062,2]
[378054917,1754705432687,-460.0,0.00022062,2]
[378054919,1754705432696,-460.0,0.00022062,2]
[378054921,1754705432706,-460.0,0.00022062,2]
[378054923,1754705432716,-460.0,0.00022062,2]
[378054925,1754705432725,-2481.09,0.00022062,2]
[378054927,1754705432735,-460.0,0.00022062,2]
[378054929,1754705432745,-460.0,0.00022062,2]
[378054931,1754705432754,-566.7,0.00022062,2]
[378054933,1754705432763,-460.0,0.00022062,2]
[378054934,1754705432773,-520.17,0.00022062,2]
[378054950,1754705432910,-460.0,0.00022062,2]
[378054953,1754705432955,-695.74,0.00022062,2]
[378054955,1754705432967,-460.0,0.00022062,2]
[378054957,1754705432977,-651.49,0.00022062,2]
[378054959,1754705432987,-460.0,0.00022062,2]
[378054961,1754705432997,-492.16,0.00022062,2]
[378054963,1754705433007,-460.0,0.00022063,2]
[378054965,1754705433019,-460.0,0.00022063,2]
[378054967,1754705433029,-340.57721216,0.00022063,2]
[378054969,1754705433039,-460.0,0.00022063,2]
[378054971,1754705433050,-460.0,0.00022063,2]
[378054973,1754705433060,-460.0,0.00022063,2]
[378054975,1754705433070,-463.25826996,0.00022063,2]
[378054977,1754705433080,-460.0,0.00022063,2]
[378054979,1754705433090,-460.0,0.00022063,2]
[378054981,1754705433100,-460.0,0.00022063,2]
[378054983,1754705433110,-460.0,0.00022063,2]
[378054985,1754705433120,-460.0,0.00022063,2]
[378054987,1754705433129,-460.0,0.00022063,2]
[378054989,1754705433140,-460.74339727,0.00022063,2]
[378054991,1754705433149,-460.0,0.00022063,2]
[378054992,1754705433159,-462.17345086,0.00022063,2]
[378054994,1754705433169,-462.56990268,0.00022063,2]
[378054996,1754705433179,-460.0,0.00022063,2]
[378054998,1754705433189,-460.0,0.00022063,2]
[378055000,1754705433199,-578.12163147,0.00022063,2]
[378055002,1754705433208,-460.0,0.00022063,2]
[378055003,1754705433217,-460.0,0.00022063,2]
[378055005,1754705433226,-460.0,0.00022063,2]
[378055007,1754705433236,-460.0,0.00022063,2]
[378055009,1754705433246,-460.0,0.00022063,2]
[378055011,1754705433257,-460.0,0.00022063,2]
[378055013,1754705433267,-460.0,0.00022063,2]
[378055015,1754705433278,-460.0,0.00022063,2]
[378055018,1754705433288,-460.0,0.00022063,2]
[378055020,1754705433298,-460.0,0.00022063,2]
[378055021,1754705433309,-232.92046806,0.00022063,2]
[378055023,1754705433318,-460.0,0.00022063,2]
[378055026,1754705433332,-318.56011745,0.00022063,2]
[378055028,1754705433342,-460.0,0.00022063,2]
[378055030,1754705433352,-460.0,0.00022063,2]
[378055032,1754705433361,-460.0,0.00022063,2]
[378055034,1754705433371,-460.0,0.00022063,2]
[378055036,1754705433380,-460.0,0.00022063,2]
[378055038,1754705433390,-460.0,0.00022063,2]
[378055040,1754705433400,-460.0,0.00022063,2]
[378055042,1754705433409,-460.0,0.00022063,2]
[378055044,1754705433420,-460.0,0.00022063,2]
[378055046,1754705433431,-833.23,0.00022063,2]
[378055048,1754705433455,-460.0,0.00022063,2]
[378055050,1754705433481,-496.73,0.00022063,2]
[378055052,1754705433507,-460.0,0.00022063,2]
[378055054,1754705433541,-460.0,0.00022063,2]
[378055056,1754705433570,-504.4,0.00022063,2]
[378055058,1754705433597,-460.0,0.00022063,2]
[378055060,1754705433627,-493.16656672,0.00022063,2]
[378055062,1754705433647,-460.0,0.00022063,2]
[378055064,1754705433657,-460.0,0.00022063,2]
[378055066,1754705433666,-460.0,0.00022063,2]
[378055067,1754705433681,-500.0,0.00022063,2]
[378055070,1754705433691,-506.98809963,0.00022063,2]
[378055072,1754705433702,-500.0,0.00022063,2]
[378055074,1754705433711,-500.0,0.00022063,2]
[378055076,1754705433721,-500.0,0.00022063,2]
[378055078,1754705433731,-475.50976747,0.00022063,2]
[378055080,1754705433741,-460.0,0.00022063,2]
[378055082,1754705433751,-460.0,0.00022063,2]
[378055084,1754705433762,-460.0,0.00022063,2]
[378055086,1754705433772,-460.0,0.00022063,2]
[378055088,1754705433782,-460.0,0.00022063,2]
[378055090,1754705433791,-460.0,0.00022063,2]
[378055092,1754705433802,-460.0,0.00022063,2]
[378055093,1754705433811,-460.0,0.00022063,2]
[378055095,1754705433821,-460.0,0.00022063,2]
[378055097,1754705433831,-257.56009714,0.00022063,2]
[378055099,1754705433842,-460.0,0.00022063,2]
[378055101,1754705433852,-460.0,0.00022063,2]
[378055103,1754705433862,-460.0,0.00022063,2]
[378055105,1754705433872,-241.04571682,0.00022064,2]
[378055107,1754705433882,-6519.42447772,0.00022064,2]
[378055109,1754705433893,-4000.4,0.00022064,2]
[378055111,1754705433903,-62858.50168322,0.00022065,2]
[378055114,1754705433925,-3163.65131952,0.00022065,2]
[378055142,1754705438252,-460.0,0.00021995,2]
[378055143,1754705438263,-85.11310116,0.00022,2]
[378055144,1754705438275,-448.10689884,0.00022,2]
[378055145,1754705438284,-10066.20292541,0.00022065,2]
[378055146,1754705438307,-293911.64407185,0.00022065,2]
[378055147,1754705438316,-500.0,0.00022073,2]
[378055148,1754705438326,-151.0,0.00022149,2]
[378055149,1754705438336,-151.0,0.00022149,2]
[378055150,1754705438345,-151.0,0.00022149,2]
[378055151,1754705438355,-151.0,0.00022149,2]
[378055152,1754705438365,-151.0,0.00022149,2]
[378055153,1754705438375,-151.0,0.00022149,2]
[378055154,1754705438384,-151.0,0.00022149,2]
[378055155,1754705438393,-151.0,0.00022149,2]
[378055156,1754705438402,-151.0,0.00022149,2]
[378055157,1754705438413,-152.94290677,0.00022149,2]
[378055158,1754705438422,-151.0,0.00022149,2]
[378055159,1754705438431,-500.0,0.00022149,2]
[378055160,1754705438440,-151.0,0.00022149,2]
[378055161,1754705438449,-151.0,0.00022149,2]
[378055162,1754705438459,-500.0,0.00022149,2]
[378055163,1754705438468,-151.0,0.00022149,2]
[378055164,1754705438479,-151.0,0.00022149,2]
[378055165,1754705438488,-500.0,0.00022149,2]
[378055166,1754705438497,-250.0,0.00022149,2]
[378055167,1754705438507,-151.0,0.00022149,2]
[378055168,1754705438516,-151.0,0.00022149,2]
[378055169,1754705438526,-500.0,0.00022149,2]
[378055170,1754705438535,-151.0,0.00022149,2]
[378055171,1754705438545,-151.0,0.00022149,2]
[378055172,1754705438554,-250.0,0.00022149,2]
[378055173,1754705438563,-500.0,0.00022149,2]
[378055174,1754705438573,-151.0,0.00022149,2]
[378055175,1754705438582,-151.0,0.00022149,2]
[378055176,1754705438594,-300.0,0.00022149,2]
[378055177,1754705438613,-250.0,0.00022149,2]
[378055178,1754705438631,-500.0,0.00022149,2]
[378055179,1754705438651,-300.0,0.00022149,2]
[378055180,1754705438672,-151.0,0.00022149,2]
[378055181,1754705438692,-250.0,0.00022149,2]
[378055182,1754705438712,-151.0,0.00022149,2]
[378055183,1754705438732,-500.0,0.00022149,2]
[378055184,1754705438753,-300.0,0.00022149,2]
[378055185,1754705438774,-250.0,0.00022149,2]
[378055186,1754705438793,-151.0,0.00022149,2]
[378055187,1754705438803,-151.0,0.00022149,2]
[378055188,1754705438813,-500.0,0.00022149,2]
[378055189,1754705438822,-300.0,0.00022149,2]
[378055190,1754705438832,-151.0,0.00022149,2]
[378055191,1754705438841,-250.0,0.00022149,2]
[378055192,1754705438850,-500.0,0.00022149,2]
[378055193,1754705438859,-300.0,0.00022149,2]
[378055194,1754705438868,-151.0,0.00022149,2]
[378055195,1754705438878,-151.0,0.00022149,2]
[378055196,1754705438887,-250.0,0.00022149,2]
[378055197,1754705438896,-500.0,0.00022149,2]
[378055198,1754705438906,-300.0,0.00022149,2]
[378055199,1754705438918,-151.0,0.00022149,2]
[378055200,1754705438927,-250.0,0.00022149,2]
[378055201,1754705438936,-500.0,0.00022149,2]
[378055202,1754705438945,-151.0,0.00022149,2]
[378055203,1754705438955,-300.0,0.00022149,2]
[378055204,1754705438964,-151.0,0.00022149,2]
[378055205,1754705438973,-250.0,0.00022149,2]
[378055206,1754705438983,-500.0,0.00022149,2]
[378055207,1754705438993,-300.0,0.00022149,2]
[378055208,1754705439002,-255.82720007,0.00022149,2]
[378055209,1754705439012,-151.0,0.00022149,2]
[378055210,1754705439021,-250.0,0.00022149,2]
[378055211,1754705439031,-500.0,0.00022149,2]
[378055212,1754705439040,-305.10817957,0.00022149,2]
[378055213,1754705439049,-250.0,0.00022149,2]
[378055214,1754705439059,-250.0,0.00022149,2]
[378055215,1754705439068,-250.0,0.00022149,2]
[378055216,1754705439077,-151.0,0.00022149,2]
[378055217,1754705439087,-20633.42279861,0.00022149,2]
[378055218,1754705439096,-151.0,0.00022149,2]
[378055219,1754705439105,-151.0,0.00022149,2]
[378055220,1754705439114,-151.0,0.00022149,2]
[378055221,1754705439123,-2183.31810187,0.00022149,2]
[378055222,1754705439133,-151.0,0.00022149,2]
[378055223,1754705439142,-151.0,0.00022149,2]
[378055224,1754705439151,-151.0,0.00022149,2]
[378055225,1754705439161,-151.0,0.00022149,2]
[378055226,1754705439170,-151.0,0.00022149,2]
[378055227,1754705439180,-151.0,0.00022149,2]
[378055228,1754705439189,-151.0,0.00022149,2]
[378055229,1754705439199,-264.37813709,0.00022149,2]
[378055230,1754705439208,-151.0,0.00022149,2]
[378055231,1754705439217,-151.0,0.00022149,2]
[378055232,1754705439227,-151.0,0.00022149,2]
[378055233,1754705439236,-151.0,0.00022149,2]
[378055234,1754705439246,-151.0,0.00022149,2]
[378055235,1754705439255,-500.0,0.00022173,2]
[378055236,1754705439264,-500.0,0.00022173,2]
[378055237,1754705439273,-500.0,0.00022173,2]
[378055238,1754705439283,-506.05820326,0.00022173,2]
[378055239,1754705439292,-500.0,0.00022173,2]
[378055240,1754705439301,-460.0,0.00022196,2]
[378055241,1754705439310,-460.0,0.00022196,2]
[378055242,1754705439319,-426.60761022,0.00022196,2]
[378055243,1754705439329,-460.0,0.00022196,2]
[378055244,1754705439338,-165.66924805,0.00022196,2]
[378055245,1754705439347,-460.0,0.00022196,2]
[378055246,1754705439356,-460.0,0.00022196,2]
[378055247,1754705439365,-223.1684481,0.00022196,2]
[378055248,1754705439374,-460.0,0.00022196,2]
[378055249,1754705439383,-460.0,0.00022196,2]
[378055250,1754705439392,-2264.10087164,0.00022204,2]
[378055251,1754705439401,-2347.87260389,0.00022259,2]
[378055252,1754705439410,-460.0,0.00022269,2]
[378055253,1754705439419,-460.0,0.00022269,2]
[378055254,1754705439428,-1412.08,0.00022269,2]
[378055255,1754705439437,-460.0,0.00022269,2]
[378055256,1754705439446,-1003.7,0.00022269,2]
[378055257,1754705439455,-460.0,0.00022269,2]
[378055258,1754705439464,-702.27,0.00022269,2]
[378055259,1754705439473,-460.0,0.00022269,2]
[378055260,1754705439482,-1248.82,0.00022269,2]
[378055261,1754705439491,-460.0,0.00022269,2]
[378055262,1754705439500,-460.0,0.00022269,2]
[378055263,1754705439510,-460.0,0.00022269,2]
[378055264,1754705439520,-16157.0,0.000223,2]
[378055265,1754705439529,-2434.74389024,0.00022314,2]
[378055266,1754705439539,-440.00799133,0.00022314,2]
[378055267,1754705439548,-460.0,0.00022336,2]
[378055268,1754705439557,-460.0,0.00022336,2]
[378055269,1754705439566,-460.0,0.00022336,2]
[378055270,1754705439576,-460.0,0.00022336,2]
[378055271,1754705439585,-460.0,0.00022336,2]
[378055272,1754705439595,-460.0,0.00022336,2]
[378055273,1754705439605,-460.0,0.00022336,2]
[378055274,1754705439614,-460.0,0.00022336,2]
[378055275,1754705439624,-460.0,0.00022336,2]
[378055276,1754705439634,-460.0,0.00022336,2]
[378055277,1754705439643,-460.0,0.00022336,2]
[378055278,1754705439652,-2481.09,0.00022336,2]
[378055279,1754705439662,-460.0,0.00022336,2]
[378055281,1754705439779,-460.0,0.00022336,2]
[378055282,1754705439790,-566.7,0.00022336,2]
[378055283,1754705439800,-460.0,0.00022336,2]
[378055284,1754705439809,-520.17,0.00022336,2]
[378055286,1754705439818,-460.0,0.00022336,2]
[378055288,1754705439827,-695.74,0.00022336,2]
[378055289,1754705439837,-460.0,0.00022336,2]
[378055290,1754705439846,-651.49,0.00022336,2]
[378055292,1754705439855,-460.0,0.00022336,2]
[378055294,1754705439865,-492.16,0.00022336,2]
[378055295,1754705439874,-366.04347945,0.00022337,2]
[378055297,1754705439884,-460.0,0.00022337,2]
[378055299,1754705439893,-460.0,0.00022337,2]